[Event "Titled Tuesday Blitz February 21 Late 2023"]
[White "Ardila, Oscar Humberto"]
[Black "Santos Flores, Alberto"]
[WhiteFideId "4404742"]
[BlackFideId "3601234"]
[WhiteElo "1982"]
[BlackElo "2164"]
[Result "0-1"]
[Round "10"]
[TimeControl "180+2"]
[Date "2023.02.21"]
[WhiteClock "0:00:15"]
[BlackClock "0:01:13"]

1. d4 {[%clk 0:03:00]}  d5 {[%clk 0:02:57]} 2. c4 {[%clk 0:02:59]}  c6 {[%clk 0:02:57]} 3. cxd5 {[%clk 0:03:00]}  cxd5 {[%clk 0:02:57]} 4. Nc3 {[%clk 0:03:00]}  Nf6 {[%clk 0:02:58]} 5. Nf3 {[%clk 0:03:01]}  Nc6 {[%clk 0:02:58]} 6. Bf4 {[%clk 0:03:01]}  a6 {[%clk 0:02:58]} 7. e3 {[%clk 0:03:02]}  Bg4 {[%clk 0:02:59]} 8. Be2 {[%clk 0:03:02]}  e6 {[%clk 0:02:59]} 9. O-O {[%clk 0:03:02]}  Be7 {[%clk 0:02:59]} 10. Rc1 {[%clk 0:03:01]}  O-O {[%clk 0:02:59]} 11. h3 {[%clk 0:03:01]}  Bxf3 {[%clk 0:02:59]} 12. Bxf3 {[%clk 0:03:01]}  Rc8 {[%clk 0:03:00]} 13. Na4 {[%clk 0:03:00]}  Nd7 {[%clk 0:02:59]} 14. Nc5 {[%clk 0:02:56]}  Nxc5 {[%clk 0:02:57]} 15. dxc5 {[%clk 0:02:56]}  Bf6 {[%clk 0:02:32]} 16. Qd2 {[%clk 0:02:50]}  Qa5 {[%clk 0:02:24]} 17. Qxa5 {[%clk 0:02:45]}  Nxa5 {[%clk 0:02:25]} 18. Bd6 {[%clk 0:02:45]}  Rfe8 {[%clk 0:02:21]} 19. b3 {[%clk 0:02:45]}  Be7 {[%clk 0:02:20]} 20. Bxe7 {[%clk 0:02:26]}  Rxe7 {[%clk 0:02:21]} 21. b4 {[%clk 0:02:14]}  Nc6 {[%clk 0:02:10]} 22. a3 {[%clk 0:02:13]}  a5 {[%clk 0:02:11]} 23. b5 {[%clk 0:02:13]}  Ne5 {[%clk 0:02:11]} 24. Be2 {[%clk 0:02:08]}  Rec7 {[%clk 0:02:10]} 25. f4 {[%clk 0:02:06]}  Nd7 {[%clk 0:02:02]} 26. c6 {[%clk 0:01:48]}  bxc6 {[%clk 0:02:02]} 27. a4 {[%clk 0:01:47]}  cxb5 {[%clk 0:02:00]} 28. Rxc7 {[%clk 0:01:45]}  Rxc7 {[%clk 0:02:01]} 29. Bxb5 {[%clk 0:01:46]}  Nf6 {[%clk 0:01:46]} 30. Rb1 {[%clk 0:01:25]}  g6 {[%clk 0:01:46]} 31. Bd3 {[%clk 0:01:19]}  Rc3 {[%clk 0:01:45]} 32. Rd1 {[%clk 0:01:10]}  Ra3 {[%clk 0:01:42]} 33. g4 {[%clk 0:01:10]}  Rxa4 {[%clk 0:01:40]} 34. g5 {[%clk 0:01:10]}  Ne4 {[%clk 0:01:40]} 35. Kg2 {[%clk 0:00:59]}  Ra2+ {[%clk 0:01:38]} 36. Kf3 {[%clk 0:00:44]}  Rf2+ {[%clk 0:01:33]} 37. Kg4 {[%clk 0:00:44]}  Kg7 {[%clk 0:01:30]} 38. Bxe4 {[%clk 0:00:44]}  dxe4 {[%clk 0:01:31]} 39. h4 {[%clk 0:00:37]}  Re2 {[%clk 0:01:27]} 40. Ra1 {[%clk 0:00:32]}  Rxe3 {[%clk 0:01:25]} 41. Rxa5 {[%clk 0:00:32]}  h5+ {[%clk 0:01:22]} 42. gxh6+ {[%clk 0:00:30]}  Kxh6 {[%clk 0:01:21]} 43. f5 {[%clk 0:00:25]}  exf5+ {[%clk 0:01:21]} 44. Kf4 {[%clk 0:00:26]}  Rf3+ {[%clk 0:01:21]} 45. Ke5 {[%clk 0:00:26]}  e3 {[%clk 0:01:20]} 46. Kf6 {[%clk 0:00:26]}  Rf4 {[%clk 0:01:16]} 47. Ra8 {[%clk 0:00:22]}  Kh5 {[%clk 0:01:15]} 48. Rh8+ {[%clk 0:00:19]}  Kg4 {[%clk 0:01:14]} 49. Kxf7 {[%clk 0:00:18]}  e2 {[%clk 0:01:14]} 50. Kxg6 {[%clk 0:00:15]}  e1=Q {[%clk 0:01:13]} 0-1


[Site "https://www.chess.com"]

[Event "Titled Tuesday Blitz February 21 Late 2023"]
[White "Buganca, Luiz Henrique Da Silva"]
[Black "Grycel, Kamil"]
[WhiteFideId "2182289"]
[BlackFideId "1115499"]
[WhiteElo "1920"]
[BlackElo "2315"]
[Result "1-0"]
[Round "10"]
[TimeControl "180+2"]
[Date "2023.02.21"]
[WhiteClock "0:01:23"]
[BlackClock "0:00:33"]

1. e4 {[%clk 0:03:00]}  b6 {[%clk 0:03:00]} 2. Nc3 {[%clk 0:03:00]}  Bb7 {[%clk 0:03:00]} 3. d3 {[%clk 0:02:59]}  g6 {[%clk 0:03:00]} 4. f4 {[%clk 0:02:59]}  Bg7 {[%clk 0:03:00]} 5. Nf3 {[%clk 0:03:00]}  c5 {[%clk 0:03:01]} 6. g3 {[%clk 0:02:58]}  d6 {[%clk 0:03:00]} 7. Bg2 {[%clk 0:02:59]}  Nc6 {[%clk 0:02:57]} 8. O-O {[%clk 0:02:59]}  e6 {[%clk 0:02:57]} 9. f5 {[%clk 0:02:49]}  gxf5 {[%clk 0:02:38]} 10. exf5 {[%clk 0:02:49]}  e5 {[%clk 0:02:17]} 11. Bg5 {[%clk 0:02:43]}  Bf6 {[%clk 0:02:16]} 12. Bd2 {[%clk 0:02:41]}  d5 {[%clk 0:02:09]} 13. Qe1 {[%clk 0:02:38]}  Nge7 {[%clk 0:02:03]} 14. g4 {[%clk 0:02:37]}  h6 {[%clk 0:02:00]} 15. h4 {[%clk 0:02:36]}  Rg8 {[%clk 0:01:57]} 16. g5 {[%clk 0:02:33]}  hxg5 {[%clk 0:01:51]} 17. hxg5 {[%clk 0:02:34]}  Bh8 {[%clk 0:01:38]} 18. f6 {[%clk 0:02:33]}  Ng6 {[%clk 0:01:38]} 19. Nh4 {[%clk 0:02:21]}  Nxh4 {[%clk 0:01:33]} 20. Qxh4 {[%clk 0:02:16]}  Nd4 {[%clk 0:01:23]} 21. Rae1 {[%clk 0:02:11]}  Qd6 {[%clk 0:01:18]} 22. Rxe5+ {[%clk 0:01:57]}  Qxe5 {[%clk 0:01:17]} 23. Re1 {[%clk 0:01:57]}  Qxe1+ {[%clk 0:01:17]} 24. Qxe1+ {[%clk 0:01:58]}  Ne6 {[%clk 0:01:16]} 25. Nxd5 {[%clk 0:01:56]}  Bxd5 {[%clk 0:01:15]} 26. Bxd5 {[%clk 0:01:55]}  O-O-O {[%clk 0:01:15]} 27. Bxe6+ {[%clk 0:01:55]}  fxe6 {[%clk 0:01:15]} 28. Qxe6+ {[%clk 0:01:56]}  Kb7 {[%clk 0:00:54]} 29. f7 {[%clk 0:01:56]}  Rgf8 {[%clk 0:00:53]} 30. g6 {[%clk 0:01:56]}  Bg7 {[%clk 0:00:53]} 31. Bg5 {[%clk 0:01:52]}  Rd4 {[%clk 0:00:47]} 32. Be7 {[%clk 0:01:49]}  Rh8 {[%clk 0:00:45]} 33. f8=Q {[%clk 0:01:34]}  Bxf8 {[%clk 0:00:45]} 34. Bxf8 {[%clk 0:01:35]}  Rhh4 {[%clk 0:00:40]} 35. g7 {[%clk 0:01:26]}  Rdg4+ {[%clk 0:00:34]} 36. Kf2 {[%clk 0:01:26]}  Rf4+ {[%clk 0:00:33]} 37. Kg3 {[%clk 0:01:23]} 1-0


[Site "https://www.chess.com"]

[Event "Titled Tuesday Blitz February 21 Late 2023"]
[White "Carrasco Miranda, Andres"]
[Black "The_Sherman_Variation"]
[WhiteFideId "3405990"]
[WhiteElo "2240"]
[BlackElo "2501"]
[Result "1-0"]
[Round "10"]
[TimeControl "180+2"]
[Date "2023.02.21"]
[WhiteClock "0:00:25"]
[BlackClock "0:00:21"]

1. d4 {[%clk 0:03:00]}  Nf6 {[%clk 0:02:59]} 2. c4 {[%clk 0:03:00]}  c5 {[%clk 0:02:59]} 3. d5 {[%clk 0:03:00]}  b5 {[%clk 0:03:00]} 4. cxb5 {[%clk 0:03:00]}  e6 {[%clk 0:03:00]} 5. Nc3 {[%clk 0:02:59]}  exd5 {[%clk 0:03:01]} 6. Nxd5 {[%clk 0:03:00]}  Bb7 {[%clk 0:03:01]} 7. e4 {[%clk 0:03:00]}  a6 {[%clk 0:02:57]} 8. bxa6 {[%clk 0:02:57]}  Nxa6 {[%clk 0:02:57]} 9. Bc4 {[%clk 0:02:56]}  Nxd5 {[%clk 0:02:57]} 10. Bxd5 {[%clk 0:02:55]}  Bxd5 {[%clk 0:02:56]} 11. Qxd5 {[%clk 0:02:56]}  Nb4 {[%clk 0:02:55]} 12. Qc4 {[%clk 0:02:53]}  Be7 {[%clk 0:02:50]} 13. Nf3 {[%clk 0:02:53]}  O-O {[%clk 0:02:49]} 14. O-O {[%clk 0:02:53]}  d6 {[%clk 0:02:44]} 15. Bd2 {[%clk 0:02:53]}  Nc6 {[%clk 0:02:42]} 16. Bc3 {[%clk 0:02:52]}  Bf6 {[%clk 0:02:41]} 17. Rfd1 {[%clk 0:02:48]}  Bxc3 {[%clk 0:02:40]} 18. Qxc3 {[%clk 0:02:49]}  Qe7 {[%clk 0:02:39]} 19. Re1 {[%clk 0:02:39]}  Rfb8 {[%clk 0:02:36]} 20. b3 {[%clk 0:02:39]}  Rb4 {[%clk 0:02:32]} 21. a3 {[%clk 0:02:32]}  Rxe4 {[%clk 0:02:27]} 22. Rxe4 {[%clk 0:02:27]}  Qxe4 {[%clk 0:02:28]} 23. b4 {[%clk 0:02:20]}  cxb4 {[%clk 0:02:11]} 24. axb4 {[%clk 0:02:21]}  Rxa1+ {[%clk 0:02:11]} 25. Qxa1 {[%clk 0:02:21]}  Qxb4 {[%clk 0:02:11]} 26. h4 {[%clk 0:02:10]}  Qb8 {[%clk 0:02:10]} 27. h5 {[%clk 0:02:08]}  h6 {[%clk 0:02:10]} 28. Qc3 {[%clk 0:02:04]}  Ne7 {[%clk 0:02:04]} 29. Nd4 {[%clk 0:02:03]}  Qb1+ {[%clk 0:01:59]} 30. Kh2 {[%clk 0:02:03]}  Qe4 {[%clk 0:01:59]} 31. Qb4 {[%clk 0:01:48]}  Qe5+ {[%clk 0:01:52]} 32. Kg1 {[%clk 0:01:46]}  Nd5 {[%clk 0:01:51]} 33. Qb8+ {[%clk 0:01:41]}  Kh7 {[%clk 0:01:50]} 34. Nf3 {[%clk 0:01:41]}  Qa1+ {[%clk 0:01:39]} 35. Kh2 {[%clk 0:01:41]}  Qf6 {[%clk 0:01:38]} 36. Qb1+ {[%clk 0:01:39]}  g6 {[%clk 0:01:36]} 37. hxg6+ {[%clk 0:01:39]}  Qxg6 {[%clk 0:01:31]} 38. Qb7 {[%clk 0:01:23]}  Nf4 {[%clk 0:01:27]} 39. Nh4 {[%clk 0:01:12]}  Qf6 {[%clk 0:01:24]} 40. g3 {[%clk 0:01:02]}  Kg7 {[%clk 0:01:15]} 41. Qf3 {[%clk 0:00:40]}  Ne6 {[%clk 0:01:05]} 42. Nf5+ {[%clk 0:00:39]}  Kg8 {[%clk 0:01:01]} 43. Qg4+ {[%clk 0:00:35]}  Kf8 {[%clk 0:00:54]} 44. f4 {[%clk 0:00:34]}  d5 {[%clk 0:00:45]} 45. Nd6 {[%clk 0:00:24]}  d4 {[%clk 0:00:32]} 46. Qf3 {[%clk 0:00:24]}  Kg7 {[%clk 0:00:22]} 47. Ne8+ {[%clk 0:00:24]}  Kg6 {[%clk 0:00:20]} 48. Nxf6 {[%clk 0:00:25]}  Kxf6 {[%clk 0:00:21]} 49. Qe4 {[%clk 0:00:25]}  Ke7 {[%clk 0:00:21]} 50. f5 {[%clk 0:00:25]} 1-0


[Site "https://www.chess.com"]

[Event "Titled Tuesday Blitz February 21 Late 2023"]
[White "Prieto Aranguren, Alain"]
[Black "Petrovic, Aleksa"]
[WhiteFideId "2268906"]
[BlackFideId "967629"]
[WhiteElo "2258"]
[BlackElo "2332"]
[Result "0-1"]
[Round "10"]
[TimeControl "180+2"]
[Date "2023.02.21"]
[WhiteClock "0:00:08"]
[BlackClock "0:00:25"]

1. d4 {[%clk 0:03:00]}  Nf6 {[%clk 0:02:59]} 2. c4 {[%clk 0:02:58]}  e6 {[%clk 0:02:59]} 3. Nc3 {[%clk 0:02:58]}  Bb4 {[%clk 0:02:58]} 4. e3 {[%clk 0:02:57]}  O-O {[%clk 0:02:58]} 5. Bd3 {[%clk 0:02:55]}  d5 {[%clk 0:02:58]} 6. Nf3 {[%clk 0:02:54]}  Nc6 {[%clk 0:02:58]} 7. O-O {[%clk 0:02:52]}  a6 {[%clk 0:02:58]} 8. cxd5 {[%clk 0:02:49]}  exd5 {[%clk 0:02:57]} 9. Bd2 {[%clk 0:02:46]}  Bd6 {[%clk 0:02:55]} 10. Rc1 {[%clk 0:02:44]}  Ne7 {[%clk 0:02:54]} 11. Na4 {[%clk 0:02:40]}  Ng6 {[%clk 0:02:52]} 12. Nc5 {[%clk 0:02:40]}  b6 {[%clk 0:02:48]} 13. Na4 {[%clk 0:02:38]}  Bg4 {[%clk 0:02:47]} 14. h3 {[%clk 0:02:38]}  Bh5 {[%clk 0:02:44]} 15. a3 {[%clk 0:02:36]}  Qd7 {[%clk 0:02:38]} 16. Be2 {[%clk 0:02:26]}  Ne4 {[%clk 0:02:34]} 17. Bb4 {[%clk 0:02:25]}  f5 {[%clk 0:02:23]} 18. Bxd6 {[%clk 0:02:24]}  Qxd6 {[%clk 0:02:23]} 19. Qc2 {[%clk 0:02:19]}  b5 {[%clk 0:02:06]} 20. Nc5 {[%clk 0:02:11]}  f4 {[%clk 0:01:59]} 21. Nb7 {[%clk 0:02:02]}  Qf6 {[%clk 0:01:53]} 22. Qxc7 {[%clk 0:01:53]}  Nh4 {[%clk 0:01:32]} 23. Rc6 {[%clk 0:01:29]}  Nxf3+ {[%clk 0:01:28]} 24. Bxf3 {[%clk 0:01:22]}  Qh4 {[%clk 0:01:18]} 25. Bxh5 {[%clk 0:01:11]}  fxe3 {[%clk 0:01:17]} 26. Bf3 {[%clk 0:01:01]}  exf2+ {[%clk 0:01:09]} 27. Kh2 {[%clk 0:01:01]}  Rxf3 {[%clk 0:00:59]} 28. gxf3 {[%clk 0:01:00]}  Nd2 {[%clk 0:00:54]} 29. Rcc1 {[%clk 0:00:42]}  Nxf3+ {[%clk 0:00:54]} 30. Kg2 {[%clk 0:00:32]}  Ng5 {[%clk 0:00:54]} 31. Rc3 {[%clk 0:00:16]}  Qe4+ {[%clk 0:00:46]} 32. Kxf2 {[%clk 0:00:13]}  Rf8+ {[%clk 0:00:39]} 33. Kg1 {[%clk 0:00:11]}  Qxd4+ {[%clk 0:00:35]} 34. Kg2 {[%clk 0:00:10]}  Qe4+ {[%clk 0:00:31]} 35. Kg1 {[%clk 0:00:11]}  Qd4+ {[%clk 0:00:30]} 36. Kg2 {[%clk 0:00:11]}  Re8 {[%clk 0:00:27]} 37. Rg3 {[%clk 0:00:08]}  Re2+ {[%clk 0:00:25]} 38. Kh1 {[%clk 0:00:08]}  Qe4+ {[%clk 0:00:24]} 39. Kg1 {[%clk 0:00:08]}  Nxh3+ {[%clk 0:00:25]} 0-1


[Site "https://www.chess.com"]

[Event "Titled Tuesday Blitz February 21 Late 2023"]
[White "Drnovsek, Gal"]
[Black "Kalajzic, Ivan"]
[WhiteFideId "14607077"]
[BlackFideId "14506378"]
[WhiteElo "2397"]
[BlackElo "2062"]
[Result "1-0"]
[Round "10"]
[TimeControl "180+2"]
[Date "2023.02.21"]
[WhiteClock "0:02:09"]
[BlackClock "0:00:02"]

1. e4 {[%clk 0:02:56]}  Nc6 {[%clk 0:02:59]} 2. Nc3 {[%clk 0:02:54]}  d6 {[%clk 0:02:59]} 3. f4 {[%clk 0:02:55]}  g6 {[%clk 0:02:59]} 4. Nf3 {[%clk 0:02:54]}  Bg7 {[%clk 0:03:00]} 5. d4 {[%clk 0:02:52]}  Bg4 {[%clk 0:02:59]} 6. Bb5 {[%clk 0:02:52]}  a6 {[%clk 0:02:59]} 7. Bxc6+ {[%clk 0:02:52]}  bxc6 {[%clk 0:02:59]} 8. Be3 {[%clk 0:02:52]}  Nf6 {[%clk 0:02:59]} 9. O-O {[%clk 0:02:52]}  O-O {[%clk 0:02:58]} 10. h3 {[%clk 0:02:52]}  Bxf3 {[%clk 0:02:58]} 11. Qxf3 {[%clk 0:02:53]}  Qb8 {[%clk 0:02:54]} 12. b3 {[%clk 0:02:53]}  Nd7 {[%clk 0:02:52]} 13. Ne2 {[%clk 0:02:53]}  c5 {[%clk 0:02:51]} 14. c3 {[%clk 0:02:53]}  cxd4 {[%clk 0:02:50]} 15. cxd4 {[%clk 0:02:52]}  c5 {[%clk 0:02:50]} 16. Rad1 {[%clk 0:02:51]}  cxd4 {[%clk 0:02:46]} 17. Nxd4 {[%clk 0:02:52]}  Qb7 {[%clk 0:02:43]} 18. Bf2 {[%clk 0:02:45]}  Nc5 {[%clk 0:02:38]} 19. Rfe1 {[%clk 0:02:44]}  a5 {[%clk 0:02:34]} 20. Nc2 {[%clk 0:02:33]}  f5 {[%clk 0:02:23]} 21. Bxc5 {[%clk 0:02:32]}  dxc5 {[%clk 0:02:18]} 22. e5 {[%clk 0:02:32]}  Qxf3 {[%clk 0:02:14]} 23. gxf3 {[%clk 0:02:33]}  Bh6 {[%clk 0:02:11]} 24. Rd7 {[%clk 0:02:34]}  Rfe8 {[%clk 0:01:54]} 25. Ne3 {[%clk 0:02:30]}  Bxf4 {[%clk 0:01:49]} 26. Nd5 {[%clk 0:02:28]}  Bg5 {[%clk 0:01:32]} 27. f4 {[%clk 0:02:28]}  Bh4 {[%clk 0:01:31]} 28. Rc1 {[%clk 0:02:29]}  Red8 {[%clk 0:01:25]} 29. Nxe7+ {[%clk 0:02:25]}  Bxe7 {[%clk 0:01:20]} 30. Rxe7 {[%clk 0:02:25]}  Rac8 {[%clk 0:01:16]} 31. e6 {[%clk 0:02:22]}  Rd4 {[%clk 0:01:10]} 32. Re1 {[%clk 0:02:22]}  Rxf4 {[%clk 0:01:05]} 33. Rd7 {[%clk 0:02:22]}  Re8 {[%clk 0:00:58]} 34. Re5 {[%clk 0:02:12]}  Re4 {[%clk 0:00:56]} 35. Rxc5 {[%clk 0:02:12]}  R4xe6 {[%clk 0:00:50]} 36. Rcc7 {[%clk 0:02:13]}  Re1+ {[%clk 0:00:42]} 37. Kf2 {[%clk 0:02:12]}  R1e2+ {[%clk 0:00:32]} 38. Kf3 {[%clk 0:02:13]}  R2e3+ {[%clk 0:00:19]} 39. Kf4 {[%clk 0:02:13]}  R3e4+ {[%clk 0:00:11]} 40. Kg5 {[%clk 0:02:13]}  h6+ {[%clk 0:00:08]} 41. Kxh6 {[%clk 0:02:10]}  Rh4+ {[%clk 0:00:03]} 42. Kxg6 {[%clk 0:02:10]}  Re6+ {[%clk 0:00:02]} 43. Kxf5 {[%clk 0:02:10]}  Rhh6 {[%clk 0:00:02]} 44. Rd8+ {[%clk 0:02:09]} 1-0


[Site "https://www.chess.com"]

[Event "Titled Tuesday Blitz February 21 Late 2023"]
[White "Berezin, Viktor"]
[Black "Lerch, Philipp"]
[WhiteFideId "14107872"]
[BlackFideId "4654129"]
[WhiteElo "2307"]
[BlackElo "2305"]
[Result "1/2-1/2"]
[Round "10"]
[TimeControl "180+2"]
[Date "2023.02.21"]
[WhiteClock "0:00:04"]
[BlackClock "0:00:07"]

1. d4 {[%clk 0:02:56]}  f5 {[%clk 0:02:59]} 2. g3 {[%clk 0:02:54]}  Nf6 {[%clk 0:02:59]} 3. Bg2 {[%clk 0:02:50]}  d5 {[%clk 0:03:00]} 4. c4 {[%clk 0:02:50]}  e6 {[%clk 0:02:59]} 5. Nf3 {[%clk 0:02:50]}  c6 {[%clk 0:02:59]} 6. O-O {[%clk 0:02:50]}  Be7 {[%clk 0:02:58]} 7. b3 {[%clk 0:02:51]}  O-O {[%clk 0:02:55]} 8. Ba3 {[%clk 0:02:50]}  Nbd7 {[%clk 0:02:55]} 9. Bxe7 {[%clk 0:02:49]}  Qxe7 {[%clk 0:02:56]} 10. Nc3 {[%clk 0:02:49]}  Ne4 {[%clk 0:02:56]} 11. Qc2 {[%clk 0:02:47]}  Ndf6 {[%clk 0:02:53]} 12. Ne5 {[%clk 0:02:46]}  Bd7 {[%clk 0:02:48]} 13. f3 {[%clk 0:02:44]}  Nxc3 {[%clk 0:02:48]} 14. Qxc3 {[%clk 0:02:45]}  Be8 {[%clk 0:02:48]} 15. Rfd1 {[%clk 0:02:44]}  Bf7 {[%clk 0:02:45]} 16. Rac1 {[%clk 0:02:44]}  Rfd8 {[%clk 0:02:35]} 17. e3 {[%clk 0:02:33]}  Rac8 {[%clk 0:02:30]} 18. Qa5 {[%clk 0:02:32]}  a6 {[%clk 0:02:29]} 19. Qb6 {[%clk 0:02:29]}  Qc7 {[%clk 0:02:22]} 20. Qxc7 {[%clk 0:02:17]}  Rxc7 {[%clk 0:02:23]} 21. cxd5 {[%clk 0:02:18]}  exd5 {[%clk 0:02:22]} 22. Rc3 {[%clk 0:02:13]}  Re7 {[%clk 0:02:16]} 23. Kf2 {[%clk 0:02:12]}  Be8 {[%clk 0:02:16]} 24. Rdc1 {[%clk 0:02:08]}  Rd6 {[%clk 0:02:15]} 25. Nd3 {[%clk 0:01:50]}  Nd7 {[%clk 0:01:55]} 26. a4 {[%clk 0:01:41]}  g5 {[%clk 0:01:51]} 27. a5 {[%clk 0:01:41]}  Rde6 {[%clk 0:01:43]} 28. Nb4 {[%clk 0:01:32]}  Nf6 {[%clk 0:01:39]} 29. Re1 {[%clk 0:01:11]}  f4 {[%clk 0:01:37]} 30. Nc2 {[%clk 0:01:07]}  fxe3+ {[%clk 0:01:27]} 31. Rcxe3 {[%clk 0:01:04]}  Rxe3 {[%clk 0:01:28]} 32. Rxe3 {[%clk 0:01:02]}  Rxe3 {[%clk 0:01:28]} 33. Nxe3 {[%clk 0:01:03]}  Bg6 {[%clk 0:01:28]} 34. Bh3 {[%clk 0:01:01]}  Ne8 {[%clk 0:01:23]} 35. Ng4 {[%clk 0:00:48]}  Kf8 {[%clk 0:01:17]} 36. Ke3 {[%clk 0:00:47]}  Bc2 {[%clk 0:01:04]} 37. b4 {[%clk 0:00:46]}  Nd6 {[%clk 0:01:04]} 38. Ne5 {[%clk 0:00:46]}  Ke7 {[%clk 0:01:02]} 39. Bg4 {[%clk 0:00:36]}  Bf5 {[%clk 0:00:52]} 40. Bh5 {[%clk 0:00:29]}  Be6 {[%clk 0:00:46]} 41. Kd3 {[%clk 0:00:22]}  Bf5+ {[%clk 0:00:40]} 42. Ke3 {[%clk 0:00:21]}  Nb5 {[%clk 0:00:36]} 43. Bg4 {[%clk 0:00:20]}  Bxg4 {[%clk 0:00:34]} 44. Nxg4 {[%clk 0:00:20]}  Na3 {[%clk 0:00:34]} 45. Kd3 {[%clk 0:00:18]}  Nc4 {[%clk 0:00:34]} 46. h4 {[%clk 0:00:13]}  gxh4 {[%clk 0:00:30]} 47. gxh4 {[%clk 0:00:13]}  Nd6 {[%clk 0:00:31]} 48. Ne5 {[%clk 0:00:13]}  Nf5 {[%clk 0:00:29]} 49. h5 {[%clk 0:00:13]}  Ng3 {[%clk 0:00:29]} 50. h6 {[%clk 0:00:12]}  Nf5 {[%clk 0:00:29]} 51. Ng4 {[%clk 0:00:12]}  Nh4 {[%clk 0:00:19]} 52. Ke3 {[%clk 0:00:09]}  Ng6 {[%clk 0:00:18]} 53. f4 {[%clk 0:00:08]}  Nh4 {[%clk 0:00:18]} 54. Kd3 {[%clk 0:00:05]}  Nf5 {[%clk 0:00:19]} 55. Kc3 {[%clk 0:00:06]}  Ng3 {[%clk 0:00:15]} 56. Kd3 {[%clk 0:00:06]}  Nh5 {[%clk 0:00:11]} 57. Ke3 {[%clk 0:00:05]}  Ng3 {[%clk 0:00:12]} 58. Kd3 {[%clk 0:00:05]}  Nf5 {[%clk 0:00:11]} 59. Kc3 {[%clk 0:00:05]}  Kf7 {[%clk 0:00:10]} 60. Kd3 {[%clk 0:00:05]}  Ke6 {[%clk 0:00:09]} 61. Kc3 {[%clk 0:00:05]}  Ne7 {[%clk 0:00:09]} 62. Kd3 {[%clk 0:00:05]}  Ng6 {[%clk 0:00:08]} 63. Ke3 {[%clk 0:00:05]}  Nh4 {[%clk 0:00:09]} 64. Kd3 {[%clk 0:00:04]}  Nf5 {[%clk 0:00:09]} 65. Kc3 {[%clk 0:00:04]}  Ke7 {[%clk 0:00:09]} 66. Kd3 {[%clk 0:00:04]}  Nd6 {[%clk 0:00:08]} 67. Kc3 {[%clk 0:00:04]}  Ne4+ {[%clk 0:00:08]} 68. Kd3 {[%clk 0:00:04]}  Nf6 {[%clk 0:00:07]} 69. Ne5 {[%clk 0:00:04]}  Ng8 {[%clk 0:00:06]} 70. Ng4 {[%clk 0:00:05]}  Ke6 {[%clk 0:00:06]} 71. Ke3 {[%clk 0:00:05]}  Ne7 {[%clk 0:00:06]} 72. Kd3 {[%clk 0:00:04]}  Nf5 {[%clk 0:00:07]} 1/2-1/2


[Site "https://www.chess.com"]

[Event "Titled Tuesday Blitz February 21 Late 2023"]
[White "Golubev, Mikhail"]
[Black "Goncalves, Davi Sulzbacher"]
[WhiteFideId "14100983"]
[BlackFideId "2154510"]
[WhiteElo "2461"]
[BlackElo "2282"]
[Result "1-0"]
[Round "10"]
[TimeControl "180+2"]
[Date "2023.02.21"]
[WhiteClock "0:02:18"]
[BlackClock "0:02:17"]

1. e4 {[%clk 0:03:00]}  c5 {[%clk 0:02:59]} 2. Nf3 {[%clk 0:03:00]}  d6 {[%clk 0:02:59]} 3. d4 {[%clk 0:03:00]}  cxd4 {[%clk 0:03:00]} 4. Nxd4 {[%clk 0:03:00]}  Nf6 {[%clk 0:03:01]} 5. Nc3 {[%clk 0:03:01]}  a6 {[%clk 0:03:00]} 6. Bc4 {[%clk 0:03:00]}  e6 {[%clk 0:03:00]} 7. O-O {[%clk 0:03:00]}  Be7 {[%clk 0:02:59]} 8. Bb3 {[%clk 0:03:00]}  Nbd7 {[%clk 0:02:58]} 9. Bxe6 {[%clk 0:02:54]}  fxe6 {[%clk 0:02:55]} 10. Nxe6 {[%clk 0:02:52]}  Qa5 {[%clk 0:02:56]} 11. Nxg7+ {[%clk 0:02:47]}  Kf7 {[%clk 0:02:51]} 12. Nf5 {[%clk 0:02:42]}  Ne5 {[%clk 0:02:28]} 13. Nxe7 {[%clk 0:02:32]}  Kxe7 {[%clk 0:02:27]} 14. Bg5 {[%clk 0:02:23]}  Rg8 {[%clk 0:02:23]} 15. Bxf6+ {[%clk 0:02:20]}  Kxf6 {[%clk 0:02:22]} 16. Qxd6+ {[%clk 0:02:20]}  Be6 {[%clk 0:02:17]} 17. Nd5+ {[%clk 0:02:18]} 1-0


[Site "https://www.chess.com"]

[Event "Titled Tuesday Blitz February 21 Late 2023"]
[White "Bon, Michael"]
[Black "Davidson, Kevin"]
[WhiteFideId "620696"]
[BlackFideId "2056810"]
[WhiteElo "2394"]
[BlackElo "2154"]
[Result "1-0"]
[Round "10"]
[TimeControl "180+2"]
[Date "2023.02.21"]
[WhiteClock "0:00:51"]
[BlackClock "0:00:25"]

1. e4 {[%clk 0:02:56]}  c5 {[%clk 0:02:59]} 2. Nf3 {[%clk 0:02:52]}  d6 {[%clk 0:03:00]} 3. d4 {[%clk 0:02:53]}  cxd4 {[%clk 0:03:01]} 4. Nxd4 {[%clk 0:02:54]}  Nf6 {[%clk 0:03:01]} 5. Nc3 {[%clk 0:02:54]}  a6 {[%clk 0:03:01]} 6. Bg5 {[%clk 0:02:55]}  e6 {[%clk 0:03:02]} 7. f4 {[%clk 0:02:55]}  Be7 {[%clk 0:03:02]} 8. Qf3 {[%clk 0:02:56]}  h6 {[%clk 0:03:03]} 9. Bh4 {[%clk 0:02:55]}  Qc7 {[%clk 0:03:03]} 10. O-O-O {[%clk 0:02:51]}  Nbd7 {[%clk 0:03:03]} 11. Be2 {[%clk 0:02:41]}  O-O {[%clk 0:03:02]} 12. g4 {[%clk 0:02:36]}  b5 {[%clk 0:03:01]} 13. g5 {[%clk 0:02:33]}  hxg5 {[%clk 0:03:02]} 14. Bxg5 {[%clk 0:02:33]}  b4 {[%clk 0:03:01]} 15. Nd5 {[%clk 0:01:45]}  exd5 {[%clk 0:02:56]} 16. Nf5 {[%clk 0:01:45]}  Nb6 {[%clk 0:02:24]} 17. Nxg7 {[%clk 0:01:39]}  Kxg7 {[%clk 0:01:15]} 18. Rhg1 {[%clk 0:01:35]}  Ng4 {[%clk 0:01:11]} 19. Bxe7 {[%clk 0:01:04]}  Qxe7 {[%clk 0:01:04]} 20. Rxg4+ {[%clk 0:01:03]}  Kf6 {[%clk 0:00:49]} 21. e5+ {[%clk 0:00:54]}  dxe5 {[%clk 0:00:34]} 22. fxe5+ {[%clk 0:00:53]}  Kxe5 {[%clk 0:00:35]} 23. Qe3+ {[%clk 0:00:51]}  Kd6 {[%clk 0:00:25]} 24. Qxb6+ {[%clk 0:00:51]} 1-0


[Site "https://www.chess.com"]